bitfinex/quotes_SOLUSD_20230110
["timestamp","ask_amount","ask_price","bid_price","bid_amount"]
[1673355452464,20.0,15.949,15.935,64.08]
[1673355452679,20.0,15.949,15.936,20.0]
[1673355453315,20.0,15.949,15.937,17.0]
[1673355456046,20.0,15.949,15.931,20.0]
[1673355456257,26.91,15.94,15.929,135.0706]
[1673355456567,26.91,15.94,15.929,20.0]
[1673355456773,26.91,15.94,15.93,20.0]
[1673355456983,47.05,15.946,15.931,20.0]
[1673355457216,20.0,15.945,15.931,20.0]
[1673355457532,47.05,15.944,15.931,20.0]
[1673355457843,47.05,15.944,15.932,17.0]
[1673355459006,47.05,15.946,15.932,17.0]
[1673355459638,20.0,15.945,15.932,17.0]
[1673355459955,47.05,15.944,15.932,17.0]
[1673355460135,47.05,15.946,15.932,17.0]
[1673355460555,20.0,15.945,15.932,17.0]
[1673355460771,47.05,15.944,15.932,17.0]
[1673355460996,47.05,15.946,15.933,20.0]
[1673355461396,47.05,15.946,15.934,17.0]
[1673355461606,47.05,15.947,15.934,17.0]
[1673355464361,40.05421532,15.932,15.928,86.03115599]
[1673355464563,40.05421532,15.932,15.921,112.6]
[1673355464780,40.05421532,15.932,15.922,67.12]
[1673355464977,40.05421532,15.932,15.921,47.12]
[1673355465622,40.05421532,15.932,15.92,130.8408]
[1673355465827,40.05421532,15.932,15.922,20.0]
[1673355466342,40.05421532,15.932,15.921,47.12]
[1673355466968,40.05421532,15.932,15.922,17.0]
[1673355467193,40.05421532,15.932,15.921,47.12]
[1673355467517,40.05421532,15.932,15.92,110.8408]
[1673355467730,40.05421532,15.932,15.921,20.0]
[1673355467731,20.0,15.931,15.921,20.0]
[1673355467925,93.82,15.93,15.914,47.14]
[1673355468137,20.0,15.929,15.914,47.14]
[1673355468449,20.0,15.927,15.914,47.14]
[1673355470356,47.11,15.926,15.913,108.3142]
[1673355470542,20.0,15.925,15.913,108.3142]
[1673355470754,20.0,15.925,15.911,47.15]
[1673355472136,67.1,15.927,15.911,47.15]
[1673355472347,67.1,15.927,15.914,20.0]
[1673355472693,67.1,15.927,15.915,17.0]
[1673355473085,47.1,15.927,15.915,17.0]
[1673355473307,158.0823,15.928,15.915,17.0]
[1673355473506,110.9823,15.928,15.915,17.0]
[1673355474576,47.1,15.929,15.915,17.0]
[1673355474762,47.09,15.931,15.916,37.55561823]
[1673355475101,20.0,15.934,15.918,20.0]
[1673355475310,26.91,15.93,15.912,108.3403]
[1673355475504,20.0,15.929,15.913,20.0]
[1673355475716,67.1,15.929,15.914,47.14]
[1673355476675,67.1,15.929,15.915,20.0]
[1673355476866,20.0,15.929,15.916,17.0]
[1673355478967,26.91,15.93,15.916,17.0]
[1673355479175,20.0,15.929,15.916,64.14]
[1673355479641,20.0,15.929,15.917,20.0]
[1673355480022,20.0,15.929,15.918,17.0]
[1673355480236,20.0,15.929,15.917,17.0]
[1673355482562,20.0,15.929,15.916,47.14]
[1673355482760,67.1,15.929,15.915,20.0]
[1673355483282,67.1,15.929,15.917,20.0]
[1673355483283,20.0,15.929,15.917,20.0]
[1673355483833,20.0,15.929,15.918,17.0]
[1673355486259,47.09,15.931,15.919,17.55561823]
[1673355486450,47.09,15.933,15.921,20.0]
[1673355486666,47.08,15.934,15.921,20.0]
[1673355486871,47.08,15.934,15.922,17.0]
[1673355487096,47.08,15.935,15.922,17.0]
[1673355487312,108.8484,15.936,15.924,20.0]
[1673355487527,108.8484,15.936,15.926,20.0]
[1673355488048,108.8484,15.936,15.927,17.0]
[1673355492351,47.07,15.939,15.927,17.0]
[1673355492668,20.0,15.938,15.927,17.0]
[1673355492982,67.07,15.939,15.927,17.0]
[1673355493199,20.0,15.949,15.929,20.0]
[1673355493411,118.7522,15.948,15.93,84.1]
[1673355493615,20.0,15.947,15.931,20.0]
[1673355493945,20.0,15.947,15.932,47.09]
[1673355494142,20.0,15.947,15.933,37.0]
[1673355494352,20.0,15.947,15.934,47.08]
[1673355494789,165.7922,15.948,15.936,20.0]
[1673355494978,118.7522,15.948,15.936,20.0]
[1673355495313,20.0,15.947,15.937,17.0]
[1673355495716,20.0,15.947,15.935,20.0]
[1673355495933,20.0,15.947,15.936,17.0]
[1673355496891,118.7522,15.948,15.936,17.0]
[1673355497499,20.0,15.947,15.936,17.0]
[1673355498242,118.7522,15.948,15.936,17.0]
[1673355500146,20.0,15.947,15.935,20.0]
[1673355500350,20.0,15.947,15.934,47.08]
[1673355501072,20.0,15.947,15.935,20.0]
[1673355502346,118.7522,15.948,15.936,17.0]
[1673355503410,82.60825296,15.947,15.924,20.0]
[1673355503720,26.91,15.94,15.921,139.8959]
[1673355503919,67.07,15.939,15.921,139.8959]
[1673355504241,67.07,15.939,15.924,20.0]
[1673355504442,67.07,15.939,15.925,47.11]
[1673355506442,17.0,15.938,15.922,67.12]
[1673355506771,67.08,15.937,15.922,20.0]
[1673355506959,17.0,15.936,15.922,20.0]
[1673355507169,47.08,15.935,15.922,20.0]
[1673355507696,47.08,15.936,15.923,17.0]
[1673355508110,47.07,15.938,15.923,17.0]
[1673355510024,20.0,15.937,15.923,17.0]
[1673355510239,47.08,15.936,15.923,17.0]
[1673355510761,47.07,15.938,15.923,17.0]
[1673355511502,20.0,15.937,15.923,17.0]
[1673355511693,47.08,15.936,15.923,17.0]
[1673355512028,47.08,15.936,15.922,20.0]
[1673355513186,47.07,15.938,15.922,20.0]
[1673355513404,17.0,15.937,15.922,20.0]
[1673355513587,47.08,15.936,15.922,20.0]
[1673355514554,47.07,15.938,15.922,20.0]
[1673355514868,47.07,15.938,15.923,17.0]
[1673355516970,47.07,15.938,15.924,20.0]
[1673355517195,47.07,15.938,15.922,42.97554116]
[1673355517367,26.84,15.93,15.923,43.2541485]
[1673355517578,67.1,15.929,15.914,20.0]
[1673355518105,67.1,15.929,15.914,67.14]
[1673355518313,20.0,15.928,15.914,47.14]
[1673355518751,20.0,15.928,15.915,17.0]
[1673355519259,20.0,15.928,15.914,37.0]
[1673355519693,20.0,15.928,15.914,20.0]
[1673355520218,67.1,15.929,15.914,20.0]
[1673355520981,67.1,15.929,15.916,20.0]
[1673355521181,67.1,15.929,15.917,17.0]
[1673355521358,17.0,15.928,15.913,159.676]
[1673355521697,20.0,15.927,15.913,112.526]
[1673355521884,20.0,15.925,15.913,112.526]
[1673355522097,64.11,15.926,15.913,112.526]
[1673355522535,47.11,15.926,15.913,112.526]
[1673355522729,47.1,15.928,15.913,112.526]
[1673355522944,17.0,15.927,15.913,112.526]
[1673355523146,47.11,15.926,15.913,112.526]
[1673355524013,20.0,15.924,15.91,47.16]
[1673355524214,67.11,15.924,15.911,37.0]
[1673355524416,47.11,15.924,15.911,37.0]
[1673355524630,20.0,15.927,15.912,20.0]
[1673355524865,64.11,15.926,15.912,20.0]
[1673355525076,64.11,15.926,15.911,20.0]
[1673355525296,64.11,15.926,15.91,20.0]
[1673355525610,64.11,15.926,15.911,20.0]
[1673355526453,64.11,15.926,15.912,17.0]
[1673355527300,47.11,15.926,15.912,17.0]
[1673355527612,67.1,15.928,15.913,20.0]
[1673355527801,67.1,15.928,15.914,17.0]
[1673355528867,17.0,15.927,15.914,17.0]
[1673355529083,47.11,15.926,15.914,17.0]
[1673355530026,47.1,15.928,15.914,17.0]
[1673355530975,20.0,15.927,15.914,17.0]
[1673355531187,47.11,15.926,15.914,17.0]
[1673355533286,47.1,15.927,15.914,17.0]
[1673355534415,67.1,15.929,15.915,20.0]
[1673355534633,20.0,15.929,15.916,17.0]
[1673355534845,20.0,15.929,15.917,20.0]
[1673355535053,20.0,15.929,15.918,17.0]
[1673355535276,47.08,15.935,15.919,67.13]
[1673355535493,119.2155,15.936,15.92,17.0]
[1673355535808,20.0,15.935,15.922,20.0]
[1673355536015,119.2155,15.936,15.923,17.0]
[1673355536635,20.0,15.935,15.923,17.0]
[1673355536849,119.2155,15.936,15.923,17.0]
[1673355542219,20.0,15.935,15.923,17.0]
[1673355542631,67.08,15.935,15.921,131.6005]
[1673355543057,67.08,15.935,15.922,20.0]
[1673355543895,67.08,15.935,15.923,17.0]
[1673355545461,67.08,15.935,15.922,17.0]
[1673355545671,67.08,15.935,15.922,37.0]
[1673355547036,67.08,15.935,15.922,17.0]
[1673355547486,67.08,15.935,15.922,37.0]
[1673355547999,67.08,15.935,15.922,17.0]
[1673355549362,17.0,15.934,15.921,131.6005]
[1673355549576,20.0,15.932,15.921,131.6005]
[1673355549899,47.09,15.933,15.921,131.6005]
[1673355550099,47.08,15.934,15.921,131.6005]
[1673355550424,119.2155,15.936,15.921,131.6005]
[1673355550616,119.2155,15.936,15.923,20.0]
[1673355550827,119.2155,15.936,15.924,64.11]
[1673355551039,119.2155,15.936,15.925,20.0]
[1673355551362,119.2155,15.936,15.926,17.0]
[1673355551890,119.2155,15.936,15.925,17.0]
[1673355552086,119.2155,15.936,15.924,17.0]
[1673355554502,20.0,15.935,15.924,17.0]
[1673355554710,67.08,15.935,15.923,17.0]
[1673355554933,67.08,15.935,15.922,47.12]
[1673355554934,17.0,15.934,15.921,131.6005]
[1673355555149,67.08,15.935,15.921,131.6005]
[1673355555466,20.0,15.933,15.921,131.6005]
[1673355555670,47.09,15.932,15.921,131.6005]
[1673355556310,47.09,15.932,15.921,20.0]
[1673355556625,46.87,15.93,15.916,47.14]
[1673355556814,64.1,15.929,15.915,47.14]
[1673355557157,20.0,15.928,15.914,67.14]
[1673355558532,20.0,15.928,15.914,47.14]
[1673355558744,47.1,15.927,15.914,20.0]
[1673355558933,47.1,15.928,15.915,17.0]
[1673355560635,47.1,15.928,15.913,160.626]
[1673355560842,20.0,15.926,15.913,113.476]
[1673355561055,17.0,15.925,15.913,113.476]
[1673355561263,47.11,15.926,15.913,113.476]
[1673355561464,20.0,15.927,15.914,20.0]
[1673355561786,47.11,15.926,15.913,113.476]
[1673355561997,64.11,15.926,15.914,17.0]
[1673355562927,47.11,15.926,15.914,17.0]
[1673355563135,47.1,15.928,15.915,20.0]
[1673355563472,47.1,15.928,15.916,17.0]
[1673355563672,47.1,15.929,15.916,17.0]
[1673355564206,20.0,15.928,15.916,17.0]
[1673355564520,47.1,15.927,15.916,17.0]
[1673355564729,47.1,15.927,15.915,17.0]
[1673355564921,20.0,15.926,15.913,160.626]
[1673355565450,20.0,15.926,15.914,20.0]
[1673355566393,47.1,15.927,15.915,17.0]
[1673355567031,20.0,15.926,15.915,17.0]
[1673355567238,20.0,15.926,15.914,17.0]
[1673355569787,47.1,15.927,15.914,17.0]
[1673355570009,67.1,15.928,15.915,20.0]
[1673355570209,67.1,15.928,15.916,17.0]
[1673355571156,85.51547236,15.932,15.917,20.0]
[1673355571476,32.33259533,15.938,15.918,84.13]
[1673355571477,67.08,15.935,15.918,84.13]
[1673355571688,67.08,15.935,15.92,20.0]
[1673355571999,67.08,15.935,15.921,17.0]
[1673355573150,47.08,15.935,15.921,17.0]
[1673355573365,119.2155,15.936,15.922,47.12]
[1673355573558,119.2155,15.936,15.923,20.0]
[1673355573762,47.07,15.939,15.924,49.03]
[1673355573978,20.0,15.943,15.924,49.03]
[1673355573979,47.06,15.942,15.925,37.0]
[1673355574192,20.0,15.941,15.926,47.11]
[1673355574395,20.0,15.941,15.927,37.0]
[1673355574604,67.06,15.941,15.927,37.0]
[1673355575042,20.0,15.94,15.927,37.0]
[1673355575259,20.0,15.939,15.927,37.0]
[1673355575571,67.06,15.941,15.927,37.0]
[1673355576920,20.0,15.941,15.927,37.0]
[1673355577468,67.06,15.941,15.927,37.0]
[1673355577669,20.0,15.94,15.927,37.0]
[1673355578073,40.0,15.942,15.927,37.0]
[1673355578281,47.06,15.941,15.927,37.0]
[1673355578492,114.9171,15.944,15.928,67.1]
[1673355578713,114.9171,15.944,15.928,176.7945]
[1673355578919,114.9171,15.944,15.93,26.93]
[1673355579127,114.9171,15.944,15.931,67.09]
[1673355579338,114.9171,15.944,15.932,37.0]
[1673355579557,114.9171,15.944,15.933,47.09]
[1673355579764,114.9171,15.944,15.934,37.0]
[1673355582299,47.04,15.949,15.934,37.0]
[1673355582493,27.12,15.95,15.936,20.0]
[1673355582705,20.0,15.949,15.937,17.0]
[1673355583121,67.04,15.949,15.937,17.0]
[1673355584089,20.0,15.949,15.937,17.0]
[1673355584506,67.04,15.949,15.937,17.0]
[1673355584842,20.0,15.948,15.937,17.0]
[1673355585028,47.05,15.947,15.937,17.0]
[1673355587236,20.0,15.946,15.937,17.0]
[1673355587975,20.0,15.946,15.934,67.08]
[1673355588185,20.0,15.946,15.935,17.0]
[1673355591136,20.0,15.946,15.933,20.0]
[1673355591328,20.0,15.946,15.934,17.0]
[1673355591542,67.04,15.948,15.934,17.0]
[1673355591862,47.04,15.948,15.934,17.0]
[1673355592068,20.0,15.948,15.934,64.08]
[1673355592392,20.0,15.948,15.935,20.0]
[1673355592717,20.0,15.948,15.936,17.0]
[1673355594706,20.0,15.946,15.936,17.0]
[1673355595859,67.04,15.948,15.936,17.0]
[1673355597867,67.04,15.948,15.933,128.3834]
[1673355598053,67.04,15.948,15.934,17.0]
[1673355598264,67.04,15.948,15.933,108.3834]
[1673355598474,20.0,15.946,15.931,20.0]
[1673355598686,64.05,15.945,15.931,20.0]
[1673355599018,47.05,15.945,15.931,20.0]
[1673355599211,117.7307,15.944,15.931,20.0]
[1673355599424,45.33157368,15.943,15.931,20.0]
[1673355599878,45.33157368,15.943,15.932,17.0]
[1673355601222,45.33157368,15.943,15.931,17.0]
[1673355601431,20.0,15.942,15.931,17.0]
[1673355601747,117.7307,15.944,15.931,17.0]
[1673355601960,47.05,15.946,15.933,20.0]
[1673355602165,108.532,15.947,15.934,64.08]
[1673355602792,108.532,15.947,15.934,17.0]
[1673355603208,47.05,15.946,15.934,17.0]
[1673355603423,108.532,15.947,15.934,17.0]
[1673355604595,47.04,15.948,15.934,17.0]
[1673355604780,47.03,15.951,15.935,104.1828728]
[1673355605001,47.02,15.956,15.936,20.0]
[1673355605210,47.02,15.956,15.937,67.08]
[1673355605525,20.0,15.955,15.938,37.0]
[1673355605728,47.02,15.954,15.939,67.07]
[1673355605939,47.02,15.956,15.94,20.0]
[1673355606145,47.02,15.956,15.941,20.0]
[1673355606353,47.02,15.956,15.943,20.0]
[1673355607103,73.94,15.96,15.945,20.0]
[1673355607317,20.0,15.967,15.946,47.05]
[1673355607318,47.0,15.961,15.946,47.05]
[1673355607510,47.0,15.961,15.947,20.0]
[1673355607939,47.0,15.961,15.948,20.0]
[1673355608149,47.0,15.961,15.949,20.0]
[1673355608469,47.0,15.961,15.948,20.0]
[1673355608470,26.85,15.96,15.948,20.0]
[1673355608665,20.0,15.959,15.948,20.0]
[1673355608875,67.01,15.959,15.948,20.0]
[1673355609813,47.01,15.959,15.948,20.0]
[1673355610251,47.01,15.959,15.949,17.0]
[1673355610671,47.0,15.961,15.95,20.0]
[1673355611075,47.0,15.961,15.949,20.0]
[1673355613413,47.0,15.961,15.95,17.0]
[1673355613606,47.0,15.961,15.951,20.0]
[1673355613806,46.99,15.965,15.952,21.92]
[1673355614019,46.99,15.967,15.953,17.0]
[1673355614446,109.2765,15.975,15.954,20.0]
[1673355614447,46.97,15.974,15.954,20.0]
[1673355614776,20.0,15.973,15.956,20.0]
[1673355614992,46.97,15.974,15.957,67.98]
[1673355615296,46.97,15.974,15.958,17.0]
[1673355615507,46.97,15.974,15.959,87.01]
[1673355615704,46.97,15.974,15.959,40.0]
[1673355615913,20.0,15.973,15.959,40.0]
[1673355616226,46.97,15.974,15.959,40.0]
[1673355616858,46.97,15.974,15.96,17.0]
[1673355617068,155.9039,15.978,15.961,27.05508896]
[1673355617490,46.95,15.978,15.96,47.01]
[1673355617705,32.33259533,15.979,15.962,17.60481742]
[1673355617909,20.0,15.978,15.963,84.0]
[1673355618132,66.95,15.978,15.963,84.0]
[1673355618555,46.95,15.978,15.963,84.0]
[1673355618870,20.0,15.978,15.963,81.60481742]
[1673355619060,46.96,15.977,15.963,64.0]
[1673355619271,20.0,15.978,15.963,64.0]
[1673355619697,79.28259533,15.979,15.963,81.60481742]
[1673355619923,32.33259533,15.979,15.964,21.92]
[1673355620135,32.33259533,15.979,15.965,46.99]
[1673355620972,20.0,15.978,15.966,17.0]
[1673355621187,32.33259533,15.979,15.966,17.0]
[1673355621702,32.33259533,15.979,15.967,20.0]
[1673355621917,32.33259533,15.979,15.968,18.92]
[1673355622121,32.33259533,15.979,15.969,66.98]
[1673355622745,32.33259533,15.979,15.97,20.0]
[1673355622956,32.33259533,15.979,15.971,17.0]
[1673355623489,32.33259533,15.979,15.971,63.97]
[1673355623703,32.33259533,15.979,15.972,20.0]
[1673355623900,32.33259533,15.979,15.973,63.97]
[1673355624111,32.33259533,15.979,15.974,20.0]
[1673355624549,32.33259533,15.979,15.975,46.96]
[1673355624868,32.33259533,15.979,15.976,37.0]
[1673355625399,32.33259533,15.979,15.976,17.0]
[1673355625918,32.33259533,15.979,15.974,20.0]
[1673355627158,32.33259533,15.979,15.975,17.0]
[1673355628435,32.33259533,15.979,15.972,66.97]
[1673355628645,32.33259533,15.979,15.972,20.0]
[1673355630128,25.6591892,15.986,15.972,20.0]
[1673355631288,25.6591892,15.986,15.973,17.0]
[1673355632421,5.6591892,15.986,15.974,46.97]
[1673355632957,5.6591892,15.986,15.973,46.97]
[1673355633169,5.6591892,15.986,15.974,20.0]
[1673355633384,5.6591892,15.986,15.975,46.96]
[1673355633909,5.6591892,15.986,15.977,20.0]
[1673355634100,5.6591892,15.986,15.978,20.0]
[1673355634521,5.6591892,15.986,15.979,46.95]
[1673355634753,5.6591892,15.986,15.98,20.0]
[1673355634939,5.6591892,15.986,15.981,17.0]
[1673355638828,5.6591892,15.986,15.98,20.0]
[1673355639044,5.6591892,15.986,15.979,20.0]
[1673355639271,5.6591892,15.986,15.98,46.95]
[1673355639586,46.91,15.993,15.982,20.0]
[1673355639897,20.0,15.999,15.984,20.0]
[1673355639898,20.0,15.997,15.984,20.0]
[1673355640113,20.0,15.997,15.985,17.0]
[1673355640738,20.0,15.997,15.983,46.94]
[1673355640951,20.0,15.997,15.984,17.0]
[1673355642113,46.9,15.996,15.984,17.0]
[1673355642430,20.0,15.995,15.982,46.94]
[1673355642937,20.0,15.995,15.983,17.0]
[1673355643141,20.0,15.995,15.982,46.94]
[1673355643346,20.0,15.995,15.981,20.0]
[1673355643584,20.0,15.993,15.979,40.0]
[1673355643790,20.0,15.993,15.98,46.95]
[1673355643982,26.45,15.99,15.975,118.3286]
[1673355644198,66.92,15.989,15.964,20.0]
[1673355644411,20.0,15.988,15.97,20.0]
[1673355644624,46.93,15.987,15.971,46.97]
[1673355644942,20.0,15.986,15.971,46.97]
[1673355645787,20.0,15.986,15.97,46.98]
[1673355646106,20.0,15.986,15.971,20.0]
[1673355646293,20.0,15.986,15.972,46.97]
[1673355646823,63.93,15.985,15.971,20.0]
[1673355647033,63.93,15.985,15.97,20.0]
[1673355647363,111.4394,15.984,15.966,20.0]
[1673355647553,83.94,15.983,15.967,46.99]
[1673355647757,83.94,15.983,15.964,47.0]
[1673355647758,20.0,15.982,15.964,47.0]
[1673355647970,46.95,15.981,15.964,47.0]
[1673355648182,20.0,15.979,15.964,47.0]
[1673355648831,46.95,15.978,15.964,47.0]
[1673355649021,20.0,15.977,15.964,47.0]
[1673355649553,20.0,15.977,15.962,47.0]
[1673355650281,20.0,15.977,15.962,64.60481742]
[1673355653230,46.95,15.978,15.962,64.60481742]
[1673355653439,119.0509,15.982,15.964,20.0]
[1673355653440,20.0,15.981,15.964,20.0]
[1673355653754,20.0,15.981,15.965,68.91]
[1673355654080,20.0,15.981,15.966,20.0]
[1673355654402,20.0,15.981,15.967,48.91]
[1673355654608,20.0,15.983,15.968,20.0]
[1673355654819,20.0,15.983,15.969,48.9]
[1673355655020,20.0,15.983,15.97,20.0]
[1673355655234,20.0,15.983,15.971,46.97]
[1673355655768,20.0,15.984,15.971,46.97]
[1673355657342,20.0,15.984,15.972,1.92]
[1673355657532,20.0,15.984,15.973,46.97]
[1673355658911,20.0,15.984,15.971,46.97]
[1673355660394,20.0,15.984,15.972,17.60481742]
[1673355660716,20.0,15.984,15.973,46.97]
[1673355661956,20.0,15.984,15.97,66.98]
[1673355662164,26.45,15.98,15.965,46.99]
[1673355662370,26.45,15.98,15.96,108.712]
[1673355662371,83.95,15.979,15.961,47.0]
[1673355662693,20.0,15.978,15.961,47.0]
[1673355664260,20.0,15.976,15.961,47.0]
[1673355665225,20.0,15.976,15.961,67.0]
[1673355665437,46.96,15.977,15.962,17.0]
[1673355665647,66.95,15.978,15.963,47.0]
[1673355665844,20.0,15.978,15.964,17.0]
[1673355666280,20.0,15.978,15.964,64.0]
[1673355666592,20.0,15.978,15.964,17.0]
[1673355666800,20.0,15.978,15.962,47.0]
[1673355667024,20.0,15.978,15.965,17.0]
[1673355669842,20.0,15.978,15.964,47.0]
[1673355672778,20.0,15.978,15.962,47.0]
[1673355673615,66.95,15.978,15.961,47.0]
[1673355674457,17.0,15.977,15.961,47.0]
[1673355674673,66.96,15.976,15.959,47.01]
[1673355674881,17.0,15.975,15.96,20.0]
[1673355675106,20.0,15.974,15.96,20.0]
[1673355676166,20.0,15.974,15.96,40.0]
[1673355676903,37.0,15.975,15.96,40.0]
[1673355682890,37.0,15.975,15.96,20.0]
[1673355683092,20.0,15.973,15.96,20.0]
[1673355683286,17.0,15.972,15.957,20.0]
[1673355683498,17.0,15.972,15.956,20.0]
[1673355683821,20.0,15.971,15.957,67.02]
[1673355684032,17.0,15.97,15.957,67.02]
[1673355685101,43.7,15.97,15.957,67.02]
[1673355685309,43.7,15.97,15.957,20.0]
[1673355685520,20.0,15.969,15.955,47.02]
[1673355685733,63.98,15.968,15.954,47.02]
[1673355686045,20.0,15.967,15.949,47.04]
[1673355686251,63.99,15.966,15.949,47.04]
[1673355687077,20.0,15.965,15.95,20.0]
[1673355687291,47.0,15.964,15.95,20.0]
[1673355687838,20.0,15.963,15.95,20.0]
[1673355688240,47.0,15.964,15.95,20.0]
[1673355688654,46.98,15.968,15.951,20.0]
[1673355688882,26.54,15.97,15.952,166.8953]
[1673355689091,66.98,15.969,15.953,20.0]
[1673355689283,20.0,15.969,15.955,20.0]
[1673355689500,20.0,15.969,15.956,47.02]
[1673355692459,20.0,15.969,15.957,17.0]
[1673355694029,20.0,15.969,15.955,47.02]
[1673355695720,26.54,15.97,15.956,40.0]
[1673355696043,26.54,15.97,15.957,47.02]
[1673355696218,26.54,15.97,15.958,40.0]
[1673355697400,26.54,15.97,15.958,20.0]
[1673355697831,112.4473,15.976,15.959,64.61481742]
[1673355698024,112.4473,15.976,15.96,40.96]
[1673355698230,112.4473,15.976,15.962,20.0]
[1673355698440,112.4473,15.976,15.963,47.0]
[1673355698964,112.4473,15.976,15.964,20.0]
[1673355699182,112.4473,15.976,15.965,46.99]
[1673355701406,20.0,15.975,15.963,47.0]
[1673355701589,20.0,15.975,15.962,47.0]
[1673355709085,112.4473,15.976,15.962,47.0]
[1673355709391,112.4473,15.976,15.963,20.0]
[1673355710328,112.4473,15.976,15.964,17.0]
[1673355711056,112.4473,15.976,15.964,64.0]
[1673355712742,112.4473,15.976,15.964,17.0]
[1673355712953,112.4473,15.976,15.962,47.0]
[1673355712954,20.0,15.975,15.962,47.0]
[1673355715066,112.4473,15.976,15.962,47.0]
[1673355715386,112.4473,15.976,15.963,20.0]
[1673355717160,20.0,15.975,15.962,47.0]
[1673355717587,20.0,15.975,15.96,129.7571]
[1673355717781,46.97,15.974,15.96,129.7571]
[1673355717994,20.0,15.973,15.96,129.7571]
[1673355718196,26.45,15.97,15.96,129.7571]
[1673355722856,26.45,15.98,15.961,29.14915]
[1673355723068,20.0,15.983,15.963,20.0]
[1673355723266,20.0,15.983,15.964,186.4891]
[1673355723471,66.94,15.983,15.965,20.0]
[1673355723682,20.0,15.983,15.966,68.91]
[1673355723909,20.0,15.983,15.967,20.0]
[1673355724121,20.0,15.983,15.968,46.98]
[1673355724336,20.0,15.983,15.969,20.0]
[1673355724544,161.5895,15.984,15.97,20.0]
[1673355724860,161.5895,15.984,15.97,37.60481742]
[1673355725072,114.6495,15.984,15.97,84.58481742]
[1673355725268,114.6495,15.984,15.971,21.92]
[1673355725689,114.6495,15.984,15.972,46.97]
[1673355726018,20.0,15.983,15.972,46.97]
[1673355726239,20.0,15.983,15.971,46.97]